[Event "Titled Tuesday Blitz December 20 Late 2022"]
[White "Ibadov, Dashgyn"]
[Black "Sielecki, Christof"]
[WhiteFideId "24107514"]
[BlackFideId "4620437"]
[WhiteElo "2208"]
[BlackElo "2443"]
[Result "1/2-1/2"]
[Round "07"]
[TimeControl "180+1"]
[Date "2022.12.21"]
[WhiteClock "0:00:04"]
[BlackClock "0:00:11"]

1. e4 {[%clk 0:03:00]}  c5 {[%clk 0:02:56]} 2. Nf3 {[%clk 0:02:59]}  a6 {[%clk 0:02:56]} 3. Nc3 {[%clk 0:02:58]}  b5 {[%clk 0:02:56]} 4. g3 {[%clk 0:02:57]}  Bb7 {[%clk 0:02:55]} 5. Bg2 {[%clk 0:02:57]}  e6 {[%clk 0:02:54]} 6. d4 {[%clk 0:02:55]}  cxd4 {[%clk 0:02:54]} 7. Nxd4 {[%clk 0:02:55]}  Nf6 {[%clk 0:02:54]} 8. a3 {[%clk 0:02:53]}  d6 {[%clk 0:02:51]} 9. O-O {[%clk 0:02:53]}  Qc7 {[%clk 0:02:49]} 10. Re1 {[%clk 0:02:48]}  Be7 {[%clk 0:02:49]} 11. a4 {[%clk 0:02:36]}  bxa4 {[%clk 0:02:48]} 12. Rxa4 {[%clk 0:02:35]}  Nbd7 {[%clk 0:02:48]} 13. Nb3 {[%clk 0:02:26]}  O-O {[%clk 0:02:42]} 14. Na5 {[%clk 0:02:24]}  Nc5 {[%clk 0:02:21]} 15. Ra1 {[%clk 0:02:23]}  h6 {[%clk 0:02:07]} 16. Nxb7 {[%clk 0:02:18]}  Nxb7 {[%clk 0:02:05]} 17. Qe2 {[%clk 0:01:56]}  Nc5 {[%clk 0:02:02]} 18. b3 {[%clk 0:01:54]}  Nxb3 {[%clk 0:01:50]} 19. cxb3 {[%clk 0:01:49]}  Qxc3 {[%clk 0:01:50]} 20. Bb2 {[%clk 0:01:35]}  Qxb3 {[%clk 0:01:48]} 21. e5 {[%clk 0:01:35]}  dxe5 {[%clk 0:01:47]} 22. Bxa8 {[%clk 0:01:34]}  Rxa8 {[%clk 0:01:48]} 23. Bxe5 {[%clk 0:01:26]}  a5 {[%clk 0:01:34]} 24. Reb1 {[%clk 0:01:25]}  Qd5 {[%clk 0:01:33]} 25. Rb5 {[%clk 0:01:26]}  Qd8 {[%clk 0:01:21]} 26. Ra4 {[%clk 0:01:09]}  Nd5 {[%clk 0:01:16]} 27. Rg4 {[%clk 0:01:02]}  Bf6 {[%clk 0:01:15]} 28. Kg2 {[%clk 0:00:54]}  a4 {[%clk 0:01:09]} 29. Rxa4 {[%clk 0:00:35]}  Bxe5 {[%clk 0:01:03]} 30. Qxe5 {[%clk 0:00:36]}  Rc8 {[%clk 0:00:23]} 31. Ra7 {[%clk 0:00:28]}  Qf6 {[%clk 0:00:20]} 32. Qxf6 {[%clk 0:00:17]}  Nxf6 {[%clk 0:00:20]} 33. Rbb7 {[%clk 0:00:17]}  Rf8 {[%clk 0:00:21]} 34. f4 {[%clk 0:00:17]}  g6 {[%clk 0:00:21]} 35. Kf3 {[%clk 0:00:17]}  h5 {[%clk 0:00:22]} 36. h3 {[%clk 0:00:17]}  Kg7 {[%clk 0:00:22]} 37. g4 {[%clk 0:00:17]}  hxg4+ {[%clk 0:00:23]} 38. hxg4 {[%clk 0:00:17]}  Nd5 {[%clk 0:00:23]} 39. g5 {[%clk 0:00:17]}  Kg8 {[%clk 0:00:20]} 40. Ke4 {[%clk 0:00:16]}  Kg7 {[%clk 0:00:20]} 41. Ke5 {[%clk 0:00:16]}  Ne3 {[%clk 0:00:21]} 42. Rd7 {[%clk 0:00:06]}  Nf5 {[%clk 0:00:20]} 43. Rdc7 {[%clk 0:00:04]}  Ng3 {[%clk 0:00:20]} 44. Rc6 {[%clk 0:00:03]}  Kg8 {[%clk 0:00:18]} 45. Rac7 {[%clk 0:00:01]}  Nf5 {[%clk 0:00:17]} 46. Kf6 {[%clk 0:00:01]}  Ng7 {[%clk 0:00:18]} 47. Rc8 {[%clk 0:00:01]}  Nh5+ {[%clk 0:00:16]} 48. Ke7 {[%clk 0:00:01]}  Rxc8 {[%clk 0:00:16]} 49. Rxc8+ {[%clk 0:00:02]}  Kg7 {[%clk 0:00:16]} 50. Rf8 {[%clk 0:00:03]}  Ng3 {[%clk 0:00:08]} 51. Rxf7+ {[%clk 0:00:03]}  Kg8 {[%clk 0:00:09]} 52. Kxe6 {[%clk 0:00:04]}  Nh5 {[%clk 0:00:08]} 53. Ke7 {[%clk 0:00:03]}  Kh8 {[%clk 0:00:07]} 54. Rf6 {[%clk 0:00:03]}  Kg7 {[%clk 0:00:07]} 55. Rf7+ {[%clk 0:00:04]}  Kg8 {[%clk 0:00:07]} 56. f5 {[%clk 0:00:04]}  gxf5 {[%clk 0:00:06]} 57. Rxf5 {[%clk 0:00:04]}  Kg7 {[%clk 0:00:06]} 58. Ke6 {[%clk 0:00:03]}  Kg6 {[%clk 0:00:05]} 59. Rb5 {[%clk 0:00:03]}  Ng7+ {[%clk 0:00:05]} 60. Ke7 {[%clk 0:00:03]}  Nh5 {[%clk 0:00:04]} 61. Rc5 {[%clk 0:00:03]}  Ng7 {[%clk 0:00:05]} 62. Ra5 {[%clk 0:00:03]}  Nh5 {[%clk 0:00:05]} 63. Kf8 {[%clk 0:00:03]}  Nf4 {[%clk 0:00:04]} 64. Ke7 {[%clk 0:00:02]}  Nh3 {[%clk 0:00:04]} 65. Ke6 {[%clk 0:00:02]}  Nxg5+ {[%clk 0:00:04]} 66. Ke5 {[%clk 0:00:02]}  Nf7+ {[%clk 0:00:04]} 67. Kf4 {[%clk 0:00:03]}  Kf6 {[%clk 0:00:04]} 68. Ra6+ {[%clk 0:00:03]}  Ke7 {[%clk 0:00:05]} 69. Kf5 {[%clk 0:00:04]}  Nd6+ {[%clk 0:00:05]} 70. Ke5 {[%clk 0:00:04]}  Nf7+ {[%clk 0:00:05]} 71. Kd5 {[%clk 0:00:05]}  Ng5 {[%clk 0:00:05]} 72. Rg6 {[%clk 0:00:05]}  Nf7 {[%clk 0:00:05]} 73. Rg3 {[%clk 0:00:05]}  Kf6 {[%clk 0:00:05]} 74. Rf3+ {[%clk 0:00:05]}  Ke7 {[%clk 0:00:05]} 75. Rf5 {[%clk 0:00:05]}  Nh6 {[%clk 0:00:04]} 76. Rh5 {[%clk 0:00:04]}  Nf7 {[%clk 0:00:04]} 77. Kd4 {[%clk 0:00:04]}  Kf6 {[%clk 0:00:04]} 78. Ke4 {[%clk 0:00:04]}  Kg6 {[%clk 0:00:04]} 79. Rb5 {[%clk 0:00:05]}  Kf6 {[%clk 0:00:04]} 80. Kf4 {[%clk 0:00:05]}  Ke6 {[%clk 0:00:04]} 81. Rb6+ {[%clk 0:00:05]}  Nd6 {[%clk 0:00:05]} 82. Ra6 {[%clk 0:00:04]}  Kd5 {[%clk 0:00:06]} 83. Ke3 {[%clk 0:00:04]}  Kc5 {[%clk 0:00:06]} 84. Kd3 {[%clk 0:00:04]}  Kd5 {[%clk 0:00:06]} 85. Ra5+ {[%clk 0:00:04]}  Kc6 {[%clk 0:00:07]} 86. Kd4 {[%clk 0:00:05]}  Nb5+ {[%clk 0:00:07]} 87. Kc4 {[%clk 0:00:05]}  Nd6+ {[%clk 0:00:07]} 88. Kb4 {[%clk 0:00:06]}  Nb7 {[%clk 0:00:08]} 89. Ra6+ {[%clk 0:00:06]}  Kd5 {[%clk 0:00:08]} 90. Kb5 {[%clk 0:00:06]}  Nd6+ {[%clk 0:00:09]} 91. Kb6 {[%clk 0:00:06]}  Ne4 {[%clk 0:00:09]} 92. Ra1 {[%clk 0:00:07]}  Kd4 {[%clk 0:00:10]} 93. Rh1 {[%clk 0:00:05]}  Ke5 {[%clk 0:00:11]} 94. Kc6 {[%clk 0:00:05]}  Nf6 {[%clk 0:00:10]} 95. Re1+ {[%clk 0:00:04]}  Ne4 {[%clk 0:00:11]} 96. Re2 {[%clk 0:00:04]}  Kd4 {[%clk 0:00:11]} 97. Rh2 {[%clk 0:00:03]}  Ke5 {[%clk 0:00:12]} 98. Rh5+ {[%clk 0:00:02]}  Kd4 {[%clk 0:00:12]} 99. Kd7 {[%clk 0:00:03]}  Nc3 {[%clk 0:00:11]} 100. Ke6 {[%clk 0:00:03]}  Ne4 {[%clk 0:00:12]} 101. Rh4 {[%clk 0:00:04]}  Ke3 {[%clk 0:00:11]} 102. Ke5 {[%clk 0:00:04]}  Ng3 {[%clk 0:00:10]} 103. Rh3 {[%clk 0:00:04]}  Kf3 {[%clk 0:00:11]} 104. Rh8 {[%clk 0:00:04]}  Kg4 {[%clk 0:00:11]} 105. Rg8+ {[%clk 0:00:04]}  Kf3 {[%clk 0:00:12]} 106. Rg7 {[%clk 0:00:04]}  Ne4 {[%clk 0:00:10]} 107. Rf7+ {[%clk 0:00:05]}  Ke3 {[%clk 0:00:10]} 108. Rh7 {[%clk 0:00:04]}  Nd2 {[%clk 0:00:11]} 109. Rh6 {[%clk 0:00:03]}  Nf3+ {[%clk 0:00:11]} 110. Kf5 {[%clk 0:00:04]}  Nd4+ {[%clk 0:00:11]} 111. Ke5 {[%clk 0:00:04]}  Nf3+ {[%clk 0:00:11]} 112. Kd5 {[%clk 0:00:05]}  Kf4 {[%clk 0:00:11]} 113. Rf6+ {[%clk 0:00:05]}  Ke3 {[%clk 0:00:12]} 114. Rf7 {[%clk 0:00:05]}  Nd4 {[%clk 0:00:11]} 115. Re7+ {[%clk 0:00:04]}  Kd3 {[%clk 0:00:11]} 1/2-1/2


[Site "https://www.chess.com"]

[Event "Titled Tuesday Blitz December 20 Late 2022"]
[White "Ibarra Jerez, Jose Carlos"]
[Black "Haydon, David L"]
[WhiteFideId "2226332"]
[BlackFideId "415405"]
[WhiteElo "2638"]
[BlackElo "2318"]
[Result "1-0"]
[Round "07"]
[TimeControl "180+1"]
[Date "2022.12.20"]
[WhiteClock "0:00:46"]
[BlackClock "0:01:17"]

1. e4 {[%clk 0:03:00]}  c6 {[%clk 0:02:59]} 2. Nf3 {[%clk 0:03:00]}  d5 {[%clk 0:02:59]} 3. d3 {[%clk 0:03:01]}  Bg4 {[%clk 0:02:59]} 4. h3 {[%clk 0:03:01]}  Bxf3 {[%clk 0:02:59]} 5. Qxf3 {[%clk 0:03:01]}  e6 {[%clk 0:03:00]} 6. g3 {[%clk 0:03:01]}  Bd6 {[%clk 0:03:00]} 7. Bg2 {[%clk 0:03:02]}  Nf6 {[%clk 0:03:00]} 8. O-O {[%clk 0:02:59]}  Nbd7 {[%clk 0:03:00]} 9. exd5 {[%clk 0:02:59]}  cxd5 {[%clk 0:02:59]} 10. c4 {[%clk 0:03:00]}  dxc4 {[%clk 0:02:53]} 11. dxc4 {[%clk 0:03:00]}  Rb8 {[%clk 0:02:52]} 12. Rd1 {[%clk 0:02:56]}  Qc7 {[%clk 0:02:52]} 13. Nc3 {[%clk 0:02:56]}  a6 {[%clk 0:02:51]} 14. Qe2 {[%clk 0:02:49]}  O-O {[%clk 0:02:48]} 15. Bd2 {[%clk 0:02:44]}  Rfd8 {[%clk 0:02:45]} 16. Rac1 {[%clk 0:02:43]}  Ne5 {[%clk 0:02:42]} 17. c5 {[%clk 0:02:25]}  Qxc5 {[%clk 0:02:31]} 18. Ne4 {[%clk 0:02:17]}  Nxe4 {[%clk 0:02:25]} 19. Rxc5 {[%clk 0:02:13]}  Nxc5 {[%clk 0:02:24]} 20. Bf4 {[%clk 0:02:06]}  f6 {[%clk 0:02:22]} 21. Bxe5 {[%clk 0:01:19]}  Bxe5 {[%clk 0:02:19]} 22. Rxd8+ {[%clk 0:01:18]}  Rxd8 {[%clk 0:02:19]} 23. Qc4 {[%clk 0:01:19]}  Rd1+ {[%clk 0:02:13]} 24. Kh2 {[%clk 0:01:19]}  Bd4 {[%clk 0:02:10]} 25. Bf3 {[%clk 0:01:15]}  Rd2 {[%clk 0:02:08]} 26. b4 {[%clk 0:01:05]}  Nd3 {[%clk 0:01:31]} 27. Qxd4 {[%clk 0:00:57]}  Ne1 {[%clk 0:01:29]} 28. Qe3 {[%clk 0:00:52]}  Nxf3+ {[%clk 0:01:24]} 29. Qxf3 {[%clk 0:00:51]}  Rxa2 {[%clk 0:01:24]} 30. Kg2 {[%clk 0:00:51]}  b5 {[%clk 0:01:21]} 31. Qc6 {[%clk 0:00:48]}  Re2 {[%clk 0:01:17]} 32. Qxa6 {[%clk 0:00:48]}  Re5 {[%clk 0:01:17]} 33. f4 {[%clk 0:00:46]} 1-0


[Site "https://www.chess.com"]

[Event "Titled Tuesday Blitz December 20 Late 2022"]
[White "Jaracz, Pawel"]
[Black "Lazavik, Denis"]
[WhiteFideId "1102222"]
[BlackFideId "13515110"]
[WhiteElo "2460"]
[BlackElo "2484"]
[Result "0-1"]
[Round "07"]
[TimeControl "180+1"]
[Date "2022.12.20"]
[WhiteClock "0:00:02"]
[BlackClock "0:00:05"]

1. e4 {[%clk 0:03:00]}  c5 {[%clk 0:02:59]} 2. Nf3 {[%clk 0:03:00]}  e6 {[%clk 0:03:00]} 3. d4 {[%clk 0:03:01]}  cxd4 {[%clk 0:03:01]} 4. Nxd4 {[%clk 0:03:01]}  Nc6 {[%clk 0:03:02]} 5. Nc3 {[%clk 0:03:01]}  Qc7 {[%clk 0:03:02]} 6. Be2 {[%clk 0:03:00]}  a6 {[%clk 0:03:02]} 7. O-O {[%clk 0:03:00]}  Nf6 {[%clk 0:03:02]} 8. Be3 {[%clk 0:03:00]}  Be7 {[%clk 0:03:02]} 9. f4 {[%clk 0:03:00]}  d6 {[%clk 0:03:01]} 10. Qe1 {[%clk 0:03:00]}  O-O {[%clk 0:03:01]} 11. Qg3 {[%clk 0:03:00]}  Nxd4 {[%clk 0:02:57]} 12. Bxd4 {[%clk 0:03:00]}  b5 {[%clk 0:02:58]} 13. a3 {[%clk 0:03:00]}  Bb7 {[%clk 0:02:58]} 14. Rae1 {[%clk 0:02:59]}  Rad8 {[%clk 0:02:47]} 15. Kh1 {[%clk 0:02:57]}  Bc6 {[%clk 0:02:44]} 16. Bd3 {[%clk 0:02:53]}  Rd7 {[%clk 0:02:31]} 17. Nd5 {[%clk 0:02:30]}  exd5 {[%clk 0:01:52]} 18. exd5 {[%clk 0:02:28]}  Bxd5 {[%clk 0:01:30]} 19. Rxe7 {[%clk 0:02:28]}  Nh5 {[%clk 0:01:31]} 20. Qg5 {[%clk 0:02:18]}  Rxe7 {[%clk 0:01:26]} 21. Qxd5 {[%clk 0:01:06]}  g6 {[%clk 0:01:23]} 22. Qg5 {[%clk 0:01:05]}  f6 {[%clk 0:01:16]} 23. Qh6 {[%clk 0:01:02]}  f5 {[%clk 0:01:07]} 24. c3 {[%clk 0:00:55]}  d5 {[%clk 0:00:59]} 25. Qg5 {[%clk 0:00:51]}  Ref7 {[%clk 0:00:45]} 26. Qh4 {[%clk 0:00:43]}  Qd8 {[%clk 0:00:42]} 27. Qf2 {[%clk 0:00:43]}  Nf6 {[%clk 0:00:41]} 28. Bc2 {[%clk 0:00:42]}  Re8 {[%clk 0:00:38]} 29. Bb3 {[%clk 0:00:40]}  Re4 {[%clk 0:00:35]} 30. h3 {[%clk 0:00:36]}  h5 {[%clk 0:00:32]} 31. Rd1 {[%clk 0:00:33]}  Kh7 {[%clk 0:00:14]} 32. Be5 {[%clk 0:00:33]}  Rd7 {[%clk 0:00:09]} 33. Qh4 {[%clk 0:00:22]}  Ng8 {[%clk 0:00:06]} 34. Qg3 {[%clk 0:00:22]}  Nh6 {[%clk 0:00:05]} 35. Qf2 {[%clk 0:00:16]}  Nf7 {[%clk 0:00:05]} 36. Bd4 {[%clk 0:00:17]}  Qe7 {[%clk 0:00:05]} 37. Rd2 {[%clk 0:00:16]}  Re1+ {[%clk 0:00:04]} 38. Kh2 {[%clk 0:00:17]}  Re4 {[%clk 0:00:05]} 39. Bc2 {[%clk 0:00:17]}  Re6 {[%clk 0:00:05]} 40. Bc5 {[%clk 0:00:16]}  Qe8 {[%clk 0:00:05]} 41. Bb3 {[%clk 0:00:17]}  Qd8 {[%clk 0:00:04]} 42. Bd4 {[%clk 0:00:17]}  Re4 {[%clk 0:00:05]} 43. Bc2 {[%clk 0:00:17]}  Re6 {[%clk 0:00:05]} 44. a4 {[%clk 0:00:17]}  Nd6 {[%clk 0:00:05]} 45. axb5 {[%clk 0:00:16]}  axb5 {[%clk 0:00:05]} 46. Rd1 {[%clk 0:00:11]}  Ne4 {[%clk 0:00:06]} 47. Qe3 {[%clk 0:00:10]}  Rde7 {[%clk 0:00:05]} 48. Be5 {[%clk 0:00:10]}  Nf6 {[%clk 0:00:05]} 49. Qd4 {[%clk 0:00:10]}  Ne4 {[%clk 0:00:05]} 50. Bb3 {[%clk 0:00:10]}  Rd7 {[%clk 0:00:03]} 51. Bxd5 {[%clk 0:00:09]}  Ree7 {[%clk 0:00:04]} 52. Bf6 {[%clk 0:00:07]}  Nxf6 {[%clk 0:00:04]} 53. Qxf6 {[%clk 0:00:07]}  Qh8 {[%clk 0:00:03]} 54. Qg5 {[%clk 0:00:05]}  Qd8 {[%clk 0:00:03]} 55. Qf6 {[%clk 0:00:05]}  Qh8 {[%clk 0:00:03]} 56. Qg5 {[%clk 0:00:04]}  Qg7 {[%clk 0:00:04]} 57. b3 {[%clk 0:00:04]}  Rc7 {[%clk 0:00:03]} 58. c4 {[%clk 0:00:04]}  bxc4 {[%clk 0:00:04]} 59. bxc4 {[%clk 0:00:05]}  Rcd7 {[%clk 0:00:04]} 60. Rd3 {[%clk 0:00:05]}  Rc7 {[%clk 0:00:05]} 61. Rg3 {[%clk 0:00:05]}  Qh6 {[%clk 0:00:05]} 62. Qf6 {[%clk 0:00:05]}  Qg7 {[%clk 0:00:05]} 63. Qd6 {[%clk 0:00:05]}  Red7 {[%clk 0:00:06]} 64. Qe6 {[%clk 0:00:05]}  Re7 {[%clk 0:00:06]} 65. Qd6 {[%clk 0:00:06]}  Rcd7 {[%clk 0:00:07]} 66. Qb6 {[%clk 0:00:05]}  h4 {[%clk 0:00:07]} 67. Rg5 {[%clk 0:00:05]}  Re1 {[%clk 0:00:05]} 68. Qc6 {[%clk 0:00:03]}  Ree7 {[%clk 0:00:04]} 69. Be6 {[%clk 0:00:03]}  Rc7 {[%clk 0:00:04]} 70. Qd5 {[%clk 0:00:03]}  Qf6 {[%clk 0:00:04]} 71. Bxf5 {[%clk 0:00:03]}  gxf5 {[%clk 0:00:04]} 72. Rxf5 {[%clk 0:00:04]}  Qe6 {[%clk 0:00:05]} 73. Rh5+ {[%clk 0:00:04]}  Kg7 {[%clk 0:00:05]} 74. Rg5+ {[%clk 0:00:04]}  Kf7 {[%clk 0:00:05]} 75. Rf5+ {[%clk 0:00:04]}  Ke8 {[%clk 0:00:05]} 76. Qa8+ {[%clk 0:00:04]}  Rc8 {[%clk 0:00:06]} 77. Qa4+ {[%clk 0:00:02]}  Qc6 {[%clk 0:00:06]} 78. Rb5 {[%clk 0:00:02]}  Rg7 {[%clk 0:00:05]} 79. Re5+ {[%clk 0:00:02]}  Kf8 {[%clk 0:00:05]} 80. Qc2 {[%clk 0:00:02]}  Rf7 {[%clk 0:00:05]} 81. Qg6 {[%clk 0:00:02]}  Qxg6 {[%clk 0:00:05]} 0-1


[Site "https://www.chess.com"]

[Event "Titled Tuesday Blitz December 20 Late 2022"]
[White "Jeet, Jain"]
[Black "De Souza, Cristiano Gomes"]
[WhiteFideId "5073022"]
[BlackFideId "2151758"]
[WhiteElo "2067"]
[BlackElo "2068"]
[Result "0-1"]
[Round "07"]
[TimeControl "180+1"]
[Date "2022.12.21"]
[WhiteClock "0:01:39"]
[BlackClock "0:02:22"]

1. d4 {[%clk 0:03:00]}  Nf6 {[%clk 0:02:55]} 2. Nf3 {[%clk 0:02:57]}  g6 {[%clk 0:02:55]} 3. c4 {[%clk 0:02:53]}  Bg7 {[%clk 0:02:55]} 4. Nc3 {[%clk 0:02:53]}  d6 {[%clk 0:02:56]} 5. e4 {[%clk 0:02:53]}  O-O {[%clk 0:02:57]} 6. Be2 {[%clk 0:02:52]}  e5 {[%clk 0:02:57]} 7. O-O {[%clk 0:02:50]}  Nc6 {[%clk 0:02:57]} 8. d5 {[%clk 0:02:51]}  Ne7 {[%clk 0:02:58]} 9. b4 {[%clk 0:02:49]}  Nh5 {[%clk 0:02:57]} 10. g3 {[%clk 0:02:33]}  f5 {[%clk 0:02:57]} 11. Ng5 {[%clk 0:02:32]}  Nf6 {[%clk 0:02:56]} 12. exf5 {[%clk 0:02:25]}  Bxf5 {[%clk 0:02:55]} 13. Ne6 {[%clk 0:02:23]}  Bxe6 {[%clk 0:02:54]} 14. dxe6 {[%clk 0:02:24]}  c6 {[%clk 0:02:54]} 15. Rb1 {[%clk 0:02:15]}  Nf5 {[%clk 0:02:54]} 16. Ne4 {[%clk 0:02:01]}  Nxe4 {[%clk 0:02:50]} 17. Bd3 {[%clk 0:01:58]}  Nc3 {[%clk 0:02:47]} 18. Qc2 {[%clk 0:01:54]}  Nxb1 {[%clk 0:02:46]} 19. Qxb1 {[%clk 0:01:55]}  Qe7 {[%clk 0:02:45]} 20. c5 {[%clk 0:01:44]}  d5 {[%clk 0:02:38]} 21. a4 {[%clk 0:01:43]}  Qxe6 {[%clk 0:02:30]} 22. b5 {[%clk 0:01:44]}  e4 {[%clk 0:02:29]} 23. Bc2 {[%clk 0:01:44]}  Nd4 {[%clk 0:02:28]} 24. Bd1 {[%clk 0:01:43]}  Qh3 {[%clk 0:02:26]} 25. f4 {[%clk 0:01:41]}  exf3 {[%clk 0:02:23]} 26. Be3 {[%clk 0:01:39]}  Ne2+ {[%clk 0:02:22]} 0-1


[Site "https://www.chess.com"]

[Event "Titled Tuesday Blitz December 20 Late 2022"]
[White "Keymer, Vincent"]
[Black "Kazakouski, Valery"]
[WhiteFideId "12940690"]
[BlackFideId "13507443"]
[WhiteElo "2600"]
[BlackElo "2516"]
[Result "1-0"]
[Round "07"]
[TimeControl "180+1"]
[Date "2022.12.20"]
[WhiteClock "0:00:16"]
[BlackClock "0:00:01"]

1. Nf3 {[%clk 0:03:00]}  d5 {[%clk 0:02:19]} 2. e3 {[%clk 0:03:00]}  Nf6 {[%clk 0:02:17]} 3. c4 {[%clk 0:03:00]}  e6 {[%clk 0:02:15]} 4. Nc3 {[%clk 0:03:00]}  dxc4 {[%clk 0:02:14]} 5. Bxc4 {[%clk 0:03:00]}  a6 {[%clk 0:02:15]} 6. e4 {[%clk 0:03:00]}  b5 {[%clk 0:02:11]} 7. Bb3 {[%clk 0:03:00]}  c5 {[%clk 0:02:11]} 8. d4 {[%clk 0:02:54]}  cxd4 {[%clk 0:02:10]} 9. Nxd4 {[%clk 0:02:55]}  Bb7 {[%clk 0:02:10]} 10. O-O {[%clk 0:02:46]}  Bc5 {[%clk 0:02:09]} 11. Be3 {[%clk 0:02:41]}  Nbd7 {[%clk 0:02:09]} 12. e5 {[%clk 0:02:20]}  Nxe5 {[%clk 0:01:43]} 13. Nxe6 {[%clk 0:02:18]}  Qxd1 {[%clk 0:01:17]} 14. Nxg7+ {[%clk 0:02:12]}  Kf8 {[%clk 0:00:59]} 15. Bxc5+ {[%clk 0:02:12]}  Kxg7 {[%clk 0:01:00]} 16. Raxd1 {[%clk 0:02:07]}  Rhe8 {[%clk 0:00:57]} 17. Rfe1 {[%clk 0:02:04]}  Nfd7 {[%clk 0:00:45]} 18. Bd4 {[%clk 0:01:54]}  Kg8 {[%clk 0:00:43]} 19. Re3 {[%clk 0:01:44]}  Ng6 {[%clk 0:00:40]} 20. Nd5 {[%clk 0:01:38]}  Rxe3 {[%clk 0:00:35]} 21. Bxe3 {[%clk 0:01:37]}  Nde5 {[%clk 0:00:22]} 22. h3 {[%clk 0:01:25]}  Rc8 {[%clk 0:00:14]} 23. f4 {[%clk 0:01:03]}  Nc4 {[%clk 0:00:14]} 24. Bxc4 {[%clk 0:01:04]}  Rxc4 {[%clk 0:00:11]} 25. f5 {[%clk 0:01:04]}  Bxd5 {[%clk 0:00:09]} 26. Rxd5 {[%clk 0:01:03]}  Ne7 {[%clk 0:00:09]} 27. Re5 {[%clk 0:00:54]}  Nc6 {[%clk 0:00:09]} 28. Re8+ {[%clk 0:00:48]}  Kg7 {[%clk 0:00:10]} 29. Bd2 {[%clk 0:00:38]}  b4 {[%clk 0:00:09]} 30. Rc8 {[%clk 0:00:33]}  Rc2 {[%clk 0:00:08]} 31. Bg5 {[%clk 0:00:27]}  h6 {[%clk 0:00:06]} 32. Bf4 {[%clk 0:00:26]}  h5 {[%clk 0:00:04]} 33. Bg5 {[%clk 0:00:25]}  a5 {[%clk 0:00:02]} 34. b3 {[%clk 0:00:20]}  Kh7 {[%clk 0:00:01]} 35. Kh2 {[%clk 0:00:20]}  Kg7 {[%clk 0:00:01]} 36. Kg3 {[%clk 0:00:20]}  Rc3+ {[%clk 0:00:01]} 37. Kh4 {[%clk 0:00:19]}  Nd4 {[%clk 0:00:02]} 38. f6+ {[%clk 0:00:16]}  Kg6 {[%clk 0:00:02]} 39. Rg8+ {[%clk 0:00:16]}  Kf5 {[%clk 0:00:02]} 40. Kxh5 {[%clk 0:00:16]}  Rg3 {[%clk 0:00:02]} 41. h4 {[%clk 0:00:16]}  Rxg2 {[%clk 0:00:02]} 42. Rd8 {[%clk 0:00:16]}  Ne6 {[%clk 0:00:02]} 43. Rd5+ {[%clk 0:00:16]}  Ke4 {[%clk 0:00:02]} 44. Rxa5 {[%clk 0:00:17]}  Nd4 {[%clk 0:00:02]} 45. Kh6 {[%clk 0:00:15]}  Nf5+ {[%clk 0:00:01]} 46. Kh7 {[%clk 0:00:16]}  Rg4 {[%clk 0:00:01]} 47. Rb5 {[%clk 0:00:16]} 1-0


[Site "https://www.chess.com"]